[Event "WYCC U16 Open 2019"]
[Site "Mumbai"]
[Date "2019.10.06"]
[Round "6.5"]
[White "Stork, Oliver"]
[Black "Avila Pavas, Santiago"]
[Result "1-0"]
[ECO "B39"]
[WhiteElo "2314"]
[BlackElo "2406"]
[Annotator "RC"]
[PlyCount "95"]
[EventDate "2019.10.02"]
[EventType "swiss"]
[EventCountry "IND"]
[SourceTitle "playchess.com"]
[Source "ChessBase"]
[SourceQuality "1"]
[TimeControl "40/5400+30:1800+30"]

1. c4 c5 2. Nf3 g6 3. e4 Bg7 4. d4 cxd4 5. Nxd4 Nc6 6. Be3 Nf6 7. Nc3 Ng4 8. Qxg4 Nxd4 9. Qd1 e5 10. Bd3 O-O 11. O-O d6 12. Qd2 Be6 13. Rac1 Qd7 14. Rfd1 Rfc8 15. b3 Bg4 16. Be2 Nxe2+ 17. Nxe2 Rd8 18. f3 Be6 19. Nc3 f6 20. Nb5 a6 21. Nxd6 Bf8 22. c5 Qc6 23. Qb4 a5 24. Qa3 Qa6 25. Rd2 Rd7 26. Rcd1 Rad8 27. Kf2 Be7 28. Qa4 h5 29. Nc4 Rxd2+ 30. Rxd2 Rxd2+ 31. Nxd2 Kf7 32. Nc4 Bxc4 33. bxc4 Qe6 34. Qb5 h4 35. Qxb7 Qxc4 36. Qd5+ Qxd5 37. exd5 Bf8 38. a4 f5 39. Ke2 e4 40. fxe4 fxe4 41. Bd4 Bh6 42. Be5 Ke7 43. Bd4 Kf7 44. Be5 Ke7 45. c6 Bg5 46. d6+ Ke6 47. d7 Bd8 48. c7 1-0

[Event "WYCC U16 Open 2019"]
[Site "Mumbai"]
[Date "2019.10.06"]
[Round "6.6"]
[White "Soto, Miguel Angel"]
[Black "Nogerbek, Kazybek"]
[Result "1-0"]
[ECO "B33"]
[WhiteElo "2283"]
[BlackElo "2387"]
[Annotator "ChessBase"]
[PlyCount "95"]
[EventDate "2019.10.02"]
[EventType "swiss"]
[EventCountry "IND"]
[SourceTitle "playchess.com"]
[Source "ChessBase"]
[SourceQuality "1"]
[TimeControl "40/5400+30:1800+30"]

1. e4 c5 2. Nf3 Nc6 3. d4 cxd4 4. Nxd4 Nf6 5. Nc3 e5 6. Ndb5 d6 7. Bg5 a6 8. Na3 b5 9. Nd5 Be7 10. Bxf6 Bxf6 11. c3 Rb8 12. Nc2 Bg5 13. Be2 O-O 14. Bg4 Be6 15. Ncb4 Nxb4 16. Nxb4 Qb6 17. O-O a5 18. Bxe6 fxe6 19. Nd3 Bh6 20. a4 Qc6 21. axb5 Qxe4 22. Rxa5 Qc4 23. Nb4 e4 24. Re1 d5 25. Qe2 Qc7 26. Nc6 Rbe8 27. Ra7 Qd6 28. Ra6 Rf6 29. Nd4 Qd7 30. Rea1 Qc8 31. b6 Bf4 32. Qb5 Ref8 33. b7 Bxh2+ 34. Kxh2 Qd8 35. b8=Q Qxb8+ 36. Qxb8 Rxb8 37. Ra8 Rff8 38. Rxb8 Rxb8 39. Rb1 Kf7 40. b4 Rb6 41. Kg1 e5 42. Nc2 Ke6 43. Kf1 Rc6 44. b5 Rb6 45. Ne3 h5 46. c4 d4 47. c5 Rb8 48. Nc4 1-0

[Event "WYCC U16 Open 2019"]
[Site "Mumbai"]
[Date "2019.10.06"]
[Round "6.7"]
[White "Hilwerda, Jonas"]
[Black "Talukdar, Rohan"]
[Result "1-0"]
[ECO "B90"]
[WhiteElo "2229"]
[BlackElo "2369"]
[Annotator "ChessBase"]
[PlyCount "83"]
[EventDate "2019.10.02"]
[EventType "swiss"]
[EventCountry "IND"]
[SourceTitle "playchess.com"]
[Source "ChessBase"]
[SourceQuality "1"]
[TimeControl "40/5400+30:1800+30"]

1. e4 c5 2. Nf3 d6 3. d4 cxd4 4. Nxd4 Nf6 5. Nc3 a6 6. h3 e5 7. Nb3 Be6 8. f4 Nbd7 9. g4 Rc8 10. Bg2 h6 11. f5 Bc4 12. Be3 d5 13. exd5 Bb4 14. Qd2 O-O 15. g5 hxg5 16. Bxg5 a5 17. a3 Bxc3 18. bxc3 a4 19. Nc1 Qa5 20. Nd3 Bxd5 21. Nb4 e4 22. O-O-O e3 23. Bxe3 Bxg2 24. Qxg2 Qxf5 25. Bd4 b5 26. h4 Nh5 27. Rhg1 Qh7 28. Qg5 Rfe8 29. Rdf1 Re6 30. Rd1 Ree8 31. Rdf1 Re6 32. Rf5 Qh6 33. Nd5 Rce8 34. Kb2 Rg6 35. Qxh5 Qxh5 36. Rxh5 Rxg1 37. Bxg1 Ne5 38. Nb6 Nf3 39. Bd4 Re1 40. Rxb5 Nxh4 41. Bf2 Re4 42. Rb4 1-0

[Event "WYCC U16 Open 2019"]
[Site "Mumbai"]
[Date "2019.10.06"]
[Round "6.8"]
[White "Tarlabasi, Emirhan"]
[Black "Kushagra Mohan"]
[Result "0-1"]
[ECO "E61"]
[WhiteElo "2365"]
[BlackElo "2309"]
[Annotator "ChessBase"]
[PlyCount "96"]
[EventDate "2019.10.02"]
[EventType "swiss"]
[EventCountry "IND"]
[SourceTitle "playchess.com"]
[Source "ChessBase"]
[SourceQuality "1"]
[TimeControl "40/5400+30:1800+30"]

1. d4 Nf6 2. c4 g6 3. Nc3 Bg7 4. Nf3 O-O 5. e3 d6 6. Be2 Nbd7 7. O-O e5 8. b4 e4 9. Nd2 Re8 10. Qc2 Qe7 11. Bb2 h5 12. a4 Nf8 13. Rfc1 c6 14. b5 Bf5 15. a5 Ne6 16. Nb3 Ng5 17. a6 Nf3+ 18. Bxf3 exf3 19. Qd1 cxb5 20. axb7 Qxb7 21. Na5 Qb6 22. Qxf3 b4 23. Nd5 Nxd5 24. Qxd5 Be4 25. Qg5 b3 26. Rc3 Bc2 27. h3 Rab8 28. Qf4 Rec8 29. Qf3 Qc7 30. Qd5 Qe7 31. Qf3 Rb6 32. Ra3 Rcb8 33. c5 dxc5 34. Rxc5 Be4 35. Qe2 Ba8 36. f3 Bxd4 37. Bxd4 b2 38. Rac3 b1=Q+ 39. Kh2 Rd6 40. Be5 Rb2 41. Nc4 Rxe2 42. Nxd6 Rxg2+ 43. Kxg2 Qg5+ 44. Bg3 Bxf3+ 45. Kxf3 Qf1+ 46. Ke4 Qxg3 47. Nc4 Qgf3+ 48. Kd4 Q1d1+ 0-1

[Event "WYCC U16 Open 2019"]
[Site "Mumbai"]
[Date "2019.10.06"]
[Round "6.9"]
[White "Moksh Amit Doshi"]
[Black "Lumachi, Gabriele"]
[Result "1-0"]
[ECO "D37"]
[WhiteElo "2328"]
[BlackElo "2207"]
[Annotator "ChessBase"]
[PlyCount "87"]
[EventDate "2019.10.02"]
[EventType "swiss"]
[EventCountry "IND"]
[SourceTitle "playchess.com"]
[Source "ChessBase"]
[SourceQuality "1"]
[TimeControl "40/5400+30:1800+30"]

1. d4 d5 2. c4 e6 3. Nc3 Nf6 4. Nf3 a6 5. cxd5 exd5 6. Qb3 c6 7. e4 Nxe4 8. Nxe4 dxe4 9. Ng5 Qe7 10. Bc4 Qb4+ 11. Bd2 Qxb3 12. Bxb3 Be6 13. Bxe6 fxe6 14. Nxe6 Kd7 15. Ng5 Bd6 16. Nxe4 Re8 17. f3 Kc7 18. Kf2 Nd7 19. Rhe1 Rad8 20. Ng5 Nf8 21. Nf7 Ra8 22. Nxd6 Kxd6 23. Bb4+ Kd7 24. Rxe8 Rxe8 25. Bxf8 Rxf8 26. Re1 Kd6 27. Re5 b6 28. Ke3 c5 29. Rg5 g6 30. dxc5+ bxc5 31. Rg4 Kc6 32. Ra4 Kb5 33. Re4 Rf7 34. f4 Rd7 35. g4 c4 36. f5 Rd3+ 37. Ke2 gxf5 38. gxf5 Rd5 39. Rf4 Rd7 40. f6 Rf7 41. Ke3 Kc5 42. Ke4 Kd6 43. Kf5 Kd5 44. Rf2 1-0

[Event "WYCC U16 Open 2019"]
[Site "Mumbai"]
[Date "2019.10.06"]
[Round "6.10"]
[White "Gharibyan, Mamikon"]
[Black "Ajay Karthikeyan"]
[Result "1-0"]
[ECO "A50"]
[WhiteElo "2388"]
[BlackElo "2214"]
[Annotator "ChessBase"]
[PlyCount "123"]
[EventDate "2019.10.02"]
[EventType "swiss"]
[EventCountry "IND"]
[SourceTitle "playchess.com"]
[Source "ChessBase"]
[SourceQuality "1"]
[TimeControl "40/5400+30:1800+30"]

1. d4 {[%emt 0:00:00]} Nf6 {[%emt 0:00:00]} 2. c4 {[%emt 0:00:00]} b6 {[%emt 0:00:00]} 3. Nc3 {[%emt 0:00:39]} Bb7 {[%emt 0:00:02]} 4. Qc2 {[%emt 0:03:03]} g6 {[%emt 0:01:26]} 5. e4 {[%emt 0:02:38]} d6 {[%emt 0:00:33]} 6. Nf3 {[%emt 0:03:19]} Nbd7 {[%emt 0:04:56]} 7. Be2 {[%emt 0:01:54]} e5 {[%emt 0:04:27]} 8. d5 {[%emt 0:02:01]} Bg7 {[%emt 0:05:26]} 9. O-O {[%emt 0:00:37]} O-O {[%emt 0:00:07]} 10. Rb1 {[%emt 0:00:53]} a5 {[%emt 0:01:13]} 11. a3 {[%emt 0:01:17]} a4 {[%emt 0:04:25]} 12. Nxa4 {[%emt 0:15:31]} Nxe4 {[%emt 0:00:29]} 13. Nxb6 {[%emt 0:00:24]} Nxb6 {[%emt 0:04:03]} 14. Qxe4 {[%emt 0:00:06]} f5 {[%emt 0:00:05]} 15. Qc2 {[%emt 0:01:59]} h6 {[%emt 0:05:27]} 16. Rd1 {[%emt 0:02:27]} g5 {[%emt 0:09:27]} 17. b4 {[%emt 0:03:28]} g4 {[%emt 0:02:31]} 18. Ne1 {[%emt 0:00:27]} Nc8 {[%emt 0:09:42]} 19. g3 {[%emt 0:09:22]} Ne7 {[%emt 0:02:04]} 20. Ng2 {[%emt 0:00:05]} Bc8 {[%emt 0:06:32]} 21. f4 {[%emt 0:10:32]} gxf3 {[%emt 0:01:33]} 22. Bxf3 {[%emt 0:00:08]} Bd7 {[%emt 0:02:05]} 23. Rf1 {[%emt 0:02:34]} Kh8 {[%emt 0:02:51]} 24. Bb2 {[%emt 0:07:13]} Bf6 {[%emt 0:04:56]} 25. Rbe1 {[%emt 0:00:50]} Be8 {[%emt 0:01:42]} 26. Qd2 {[%emt 0:11:35]} Kh7 {[%emt 0:01:33]} 27. Bd1 {[%emt 0:00:20]} Bg6 {[%emt 0:00:49]} 28. a4 {[%emt 0:01:25]} Bg5 {[%emt 0:02:26]} 29. Qe2 {[%emt 0:01:36]} h5 {[%emt 0:01:59]} 30. Kh1 {[%emt 0:05:16]} Ng8 {[%emt 0:00:30]} 31. Bc2 {[%emt 0:01:13]} Nh6 {[%emt 0:00:40]} 32. Bc1 {[%emt 0:02:04]} Bxc1 {[%emt 0:06:47]} 33. Rxc1 {[%emt 0:00:11]} Qg5 {[%emt 0:00:06]} 34. Nh4 {[%emt 0:01:57]} Ng4 {[%emt 0:02:19]} 35. Rce1 {[%emt 0:00:32]} Kg7 {[%emt 0:01:04]} 36. Nf3 {[%emt 0:01:26]} Qf6 {[%emt 0:01:34]} 37. h3 {[%emt 0:01:17]} Nh6 {[%emt 0:00:04]} 38. Qd2 {[%emt 0:00:29]} Nf7 {[%emt 0:01:49]} 39. b5 {[%emt 0:00:45]} Bh7 {[%emt 0:01:38]} 40. a5 {[%emt 0:03:52]} Kh8 {[%emt 0:00:12]} 41. Nh4 {[%emt 0:06:08]} Nh6 {[%emt 0:03:33]} 42. Rf3 {[%emt 0:01:12]} Rg8 {[%emt 0:05:58]} 43. Qc3 {[%emt 0:04:49]} Raf8 {[%emt 0:02:20]} 44. Ng2 {[%emt 0:07:14]} h4 {[%emt 0:01:57]} 45. Nxh4 {[%emt 0:02:00]} f4 {[%emt 0:01:53]} 46. Bxh7 {[%emt 0:00:51]} Kxh7 {[%emt 0:00:24]} 47. Qc2+ {[%emt 0:02:34]} Kh8 {[%emt 0:00:10]} 48. Ref1 {[%emt 0:02:11]} Rxg3 {[%emt 0:08:40]} 49. Rxg3 {[%emt 0:00:32]} Qxh4 {[%emt 0:00:04]} 50. Qg2 {[%emt 0:04:31]} Nf5 {[%emt 0:03:27]} 51. Rg4 {[%emt 0:00:04]} Qh7 {[%emt 0:04:40]} 52. Rg1 {[%emt 0:00:16]} Ne3 {[%emt 0:01:51]} 53. Rh4 {[%emt 0:00:28]} Nxg2 {[%emt 0:00:20]} 54. Rxh7+ {[%emt 0:00:04]} Kxh7 {[%emt 0:00:01]} 55. Kxg2 {[%emt 0:00:11]} Kg6 {[%emt 0:00:45]} 56. a6 {[%emt 0:00:54]} Kf5 {[%emt 0:00:09]} 57. c5 {[%emt 0:02:05]} Ke4 {[%emt 0:03:33]} 58. b6 {[%emt 0:01:20]} Kd3 {[%emt 0:03:31]} 59. b7 {[%emt 0:02:01]} Ke2 {[%emt 0:00:08]} 60. a7 {[%emt 0:00:32]} Rg8+ {[%emt 0:01:22]} 61. Kh2 {[%emt 0:00:13]} Rxg1 {[%emt 0:00:03]} 62. b8=Q 1-0

[Event "WYCC U16 Open 2019"]
[Site "Mumbai"]
[Date "2019.10.06"]
[Round "6.12"]
[White "Sankalp Gupta"]
[Black "Tomiello, Lucas Costamilan"]
[Result "1-0"]
[ECO "B94"]
[WhiteElo "2369"]
[BlackElo "2107"]
[Annotator "ChessBase"]
[PlyCount "101"]
[EventDate "2019.10.02"]
[EventType "swiss"]
[EventCountry "IND"]
[SourceTitle "playchess.com"]
[Source "ChessBase"]
[SourceQuality "1"]
[TimeControl "40/5400+30:1800+30"]

1. e4 c5 2. Nf3 d6 3. d4 cxd4 4. Nxd4 Nf6 5. Nc3 a6 6. Bg5 Nbd7 7. Qe2 h6 8. Bh4 g6 9. f4 e5 10. fxe5 dxe5 11. O-O-O Qc7 12. Nb3 b5 13. Nd5 Nxd5 14. exd5 Bd6 15. Qd2 Bb7 16. Na5 Rc8 17. Nxb7 Qxb7 18. g4 Kf8 19. Bg2 Rc4 20. h3 Kg7 21. Kb1 Rhc8 22. Rc1 a5 23. Rhf1 a4 24. Rf3 f6 25. Qf2 g5 26. Bg3 b4 27. Bf1 Rd4 28. Rd3 Qxd5 29. Qf5 Rd8 30. Bg2 Qc4 31. b3 axb3 32. axb3 Qc7 33. h4 Nf8 34. hxg5 hxg5 35. Be4 Qd7 36. Qf3 Bc5 37. Rf1 Qe6 38. Rh1 Rxd3 39. Bxd3 Bd4 40. Be1 Qe8 41. Qh3 Bc3 42. Qh8+ Kf7 43. Bc4+ Ke7 44. Qg7+ Kd6 45. Bxc3 bxc3 46. Rd1+ Kc6 47. Bb5+ Kxb5 48. Qb7+ Kc5 49. b4+ Kc4 50. Qc7+ Kxb4 51. Rxd8 1-0

[Event "WYCC U16 Open 2019"]
[Site "Mumbai"]
[Date "2019.10.06"]
[Round "6.13"]
[White "Harshavardhan G B"]
[Black "Zetocha, Adrian"]
[Result "1-0"]
[ECO "B07"]
[WhiteElo "2362"]
[BlackElo "2043"]
[Annotator "ChessBase"]
[PlyCount "114"]
[EventDate "2019.10.02"]
[EventType "swiss"]
[EventCountry "IND"]
[SourceTitle "playchess.com"]
[Source "ChessBase"]
[SourceQuality "1"]
[TimeControl "40/5400+30:1800+30"]

1. e4 {[%emt 0:00:00]} d6 {[%emt 0:06:16]} 2. d4 {[%emt 0:00:06]} Nf6 {[%emt 0:00:08]} 3. Nc3 {[%emt 0:00:18]} g6 {[%emt 0:00:15]} 4. Be3 {[%emt 0:01:24]} Bg7 {[%emt 0:05:15]} 5. Nf3 {[%emt 0:00:28]} O-O {[%emt 0:01:29]} 6. Qd2 {[%emt 0:01:13]} c6 {[%emt 0:03:12]} 7. Bh6 {[%emt 0:05:46]} Bg4 {[%emt 0:06:39]} 8. Be2 {[%emt 0:05:17]} Bxf3 {[%emt 0:07:44]} 9. Bxf3 {[%emt 0:04:06]} e5 {[%emt 0:01:15]} 10. Bxg7 {[%emt 0:01:52]} Kxg7 {[%emt 0:00:10]} 11. O-O-O {[%emt 0:00:33]} Na6 {[%emt 0:07:26]} 12. h4 {[%emt 0:01:41]} Nc7 {[%emt 0:04:20]} 13. h5 {[%emt 0:02:14]} Qe7 {[%emt 0:00:31]} 14. Be2 {[%emt 0:09:11]} Ne6 {[%emt 0:02:40]} 15. dxe5 {[%emt 0:01:10]} dxe5 {[%emt 0:00:13]} 16. hxg6 {[%emt 0:02:24]} fxg6 {[%emt 0:00:17]} 17. Qh6+ {[%emt 0:04:00]} Kg8 {[%emt 0:08:54]} 18. Bc4 {[%emt 0:00:50]} b5 {[%emt 0:00:42]} 19. Bb3 {[%emt 0:00:44]} Rae8 {[%emt 0:07:50]} 20. f4 {[%emt 0:07:12]} Kh8 {[%emt 0:05:20]} 21. Bxe6 {[%emt 0:11:28]} Qxe6 {[%emt 0:00:14]} 22. f5 {[%emt 0:00:26]} gxf5 {[%emt 0:02:33]} 23. exf5 {[%emt 0:00:09]} Qe7 {[%emt 0:01:01]} 24. Qh4 {[%emt 0:07:59]} b4 {[%emt 0:08:34]} 25. Ne4 {[%emt 0:10:52]} Nxe4 {[%emt 0:00:36]} 26. Qxe4 {[%emt 0:00:05]} Qg5+ {[%emt 0:00:29]} 27. Kb1 {[%emt 0:01:35]} Qxf5 {[%emt 0:01:21]} 28. Qxb4 {[%emt 0:01:12]} Rf7 {[%emt 0:05:01]} 29. Qc4 {[%emt 0:03:06]} Qg6 {[%emt 0:01:50]} 30. Rh6 {[%emt 0:08:03]} Rf4 {[%emt 0:02:53]} 31. Qxc6 {[%emt 0:00:56]} Qxc6 {[%emt 0:02:35]} 32. Rxc6 {[%emt 0:00:05]} e4 {[%emt 0:05:15]} 33. Kc1 {[%emt 0:01:52]} Re7 {[%emt 0:00:16]} 34. Rcd6 {[%emt 0:01:21]} Rf2 {[%emt 0:03:01]} 35. g4 {[%emt 0:04:08]} e3 {[%emt 0:00:27]} 36. Rd8+ {[%emt 0:00:41]} Kg7 {[%emt 0:00:09]} 37. R8d7 {[%emt 0:00:28]} Rxd7 {[%emt 0:01:02]} 38. Rxd7+ {[%emt 0:00:05]} Kf6 {[%emt 0:00:29]} 39. Kd1 {[%emt 0:00:56]} Kg5 {[%emt 0:00:35]} 40. Rd4 {[%emt 0:01:21]} Rg2 {[%emt 0:00:29]} 41. Re4 {[%emt 0:04:27]} Rxg4 {[%emt 0:06:06]} 42. Rxe3 {[%emt 0:00:18]} h5 {[%emt 0:01:31]} 43. Re5+ {[%emt 0:09:11]} Kh6 {[%emt 0:05:04]} 44. Ke1 {[%emt 0:03:42]} h4 {[%emt 0:01:59]} 45. Kf1 {[%emt 0:00:56]} Rd4 {[%emt 0:11:29]} 46. Rc5 {[%emt 0:01:10]} Rd2 {[%emt 0:00:51]} 47. Kg1 {[%emt 0:00:33]} h3 {[%emt 0:03:15]} 48. b4 {[%emt 0:00:55]} h2+ {[%emt 0:01:50]} 49. Kh1 {[%emt 0:00:06]} Kg6 {[%emt 0:00:51]} 50. a4 {[%emt 0:00:54]} Kf6 {[%emt 0:00:05]} 51. b5 {[%emt 0:02:58]} Ke6 {[%emt 0:00:19]} 52. a5 {[%emt 0:01:56]} Kd6 {[%emt 0:02:04]} 53. Rc8 {[%emt 0:05:43]} Kd7 {[%emt 0:01:03]} 54. Rc3 {[%emt 0:00:48]} Ke6 {[%emt 0:00:35]} 55. a6 {[%emt 0:01:49]} Kd6 {[%emt 0:00:30]} 56. Rc8 {[%emt 0:00:56]} Ke5 {[%emt 0:00:30]} 57. b6 {[%emt 0:00:29]} Kd5 1-0

[Event "WYCC U16 Open 2019"]
[Site "Mumbai"]
[Date "2019.10.06"]
[Round "6.14"]
[White "Soham Kamotra"]
[Black "Mis, Mieszko"]
[Result "1/2-1/2"]
[ECO "A15"]
[WhiteElo "2091"]
[BlackElo "2345"]
[Annotator "NA"]
[PlyCount "102"]
[EventDate "2019.10.02"]
[EventType "swiss"]
[EventCountry "IND"]
[SourceTitle "playchess.com"]
[Source "ChessBase"]
[SourceQuality "1"]
[TimeControl "40/5400+30:1800+30"]

1. c4 Nf6 2. Nf3 e6 3. e3 c5 4. b3 b6 5. Be2 Bb7 6. Bb2 Be7 7. O-O O-O 8. Nc3 d6 9. d4 Nbd7 {A30: Symmetrical English: Double Fianchetto and Hedgehog} (9... cxd4 10. Nxd4 a6 11. Bf3 Qc7 12. Bxb7 Qxb7 13. Qe2 Nbd7 14. e4 Ne5 15. Rad1 Rfd8 16. Rd2 Ng6 17. g3 Bf8 18. Rfd1 Rab8 19. a4 Rbc8 20. Nf3 Be7 {1-0 (50) Gusain,H (2404)-Turov,M (2579) Taleigao 2019}) 10. Rc1 a6 $146 ({Predecessor:} 10... Rc8 11. Qd2 a6 {0-1 (71) Balaban Voia,A (1814)-Ileana,G (2344) Arad 2019}) 11. Qd2 Qc7 12. Rfd1 Rac8 13. Ba1 Rfd8 14. Qb2 Bf8 15. Qb1 Qb8 16. d5 exd5 17. Nxd5 Bxd5 18. cxd5 Qb7 19. Qf5 Re8 20. Rc4 g6 21. Qh3 Bg7 22. Rh4 Re4 $2 (22... Nf8 $11 {and Black is okay.}) 23. Rxe4 Nxe4 24. Bxa6 Qxa6 25. Qxd7 Bxa1 26. Rxa1 Ra8 27. Qc6 Qa3 28. h4 h6 29. Qb7 Kg7 30. Qe7 Qb2 31. Rf1 Qc2 32. a4 Qd3 33. Qb7 Qa6 34. Qe7 Qd3 35. Qb7 Re8 36. Qxb6 Qxd5 37. Qb5 Re7 38. Qc4 Qxc4 39. bxc4 Ra7 40. Ra1 Ra5 41. Ra3 g5 42. hxg5 hxg5 43. g4 $11 f5 44. gxf5 Kf6 45. Rd3 Rxa4 46. Nd2 Nxd2 47. Rxd2 Rxc4 48. Rxd6+ Kxf5 49. Rd5+ Kg4 50. Kg2 Rc2 51. Rd8 Rb2 1/2-1/2

[Event "WYCC U16 Open 2019"]
[Site "Mumbai"]
[Date "2019.10.06"]
[Round "6.15"]
[White "Jayachandra Srinivas Vellanki"]
[Black "Cardoso Cardoso, Jose Gabriel"]
[Result "0-1"]
[ECO "E15"]
[WhiteElo "1967"]
[BlackElo "2313"]
[Annotator "ChessBase"]
[PlyCount "91"]
[EventDate "2019.10.02"]
[EventType "swiss"]
[EventCountry "IND"]
[SourceTitle "playchess.com"]
[Source "ChessBase"]
[SourceQuality "1"]
[TimeControl "40/5400+30:1800+30"]

1. d4 {[%emt 0:00:00]} Nf6 {[%emt 0:00:00]} 2. c4 {[%emt 0:00:03]} e6 {[%emt 0:00:26]} 3. Nf3 {[%emt 0:00:45]} b6 {[%emt 0:00:08]} 4. g3 {[%emt 0:00:05]} Ba6 {[%emt 0:00:09]} 5. Qc2 {[%emt 0:01:14]} Bb7 {[%emt 0:00:10]} 6. Bg2 {[%emt 0:00:51]} c5 {[%emt 0:00:07]} 7. O-O {[%emt 0:01:38]} cxd4 {[%emt 0:05:08]} 8. Nxd4 {[%emt 0:00:24]} Bxg2 {[%emt 0:00:17]} 9. Kxg2 {[%emt 0:00:05]} Qc7 {[%emt 0:00:19]} 10. b3 {[%emt 0:07:10]} Be7 {[%emt 0:03:00]} 11. Bb2 {[%emt 0:03:24]} O-O {[%emt 0:00:12]} 12. Nc3 {[%emt 0:00:55]} d6 {[%emt 0:02:37]} 13. Rfd1 {[%emt 0:01:27]} Nbd7 {[%emt 0:01:03]} 14. e4 {[%emt 0:07:20]} a6 {[%emt 0:02:06]} 15. Qe2 {[%emt 0:03:29]} Qb7 {[%emt 0:02:59]} 16. f3 {[%emt 0:00:14]} Rfe8 {[%emt 0:03:16]} 17. Rd2 {[%emt 0:00:18]} Bf8 {[%emt 0:00:16]} 18. Rad1 {[%emt 0:02:00]} Rec8 {[%emt 0:06:45]} 19. Nc2 {[%emt 0:08:21]} Rab8 {[%emt 0:01:19]} 20. Ba3 {[%emt 0:05:57]} Ne8 {[%emt 0:01:57]} 21. Bb4 {[%emt 0:02:50]} Qa8 {[%emt 0:05:23]} 22. Nd4 {[%emt 0:13:10]} b5 {[%emt 0:03:31]} 23. cxb5 {[%emt 0:03:43]} a5 {[%emt 0:00:12]} 24. Bxd6 {[%emt 0:01:06]} Bxd6 {[%emt 0:12:46]} 25. Nc6 {[%emt 0:00:54]} Rxc6 {[%emt 0:00:37]} 26. bxc6 {[%emt 0:00:09]} Qxc6 {[%emt 0:00:05]} 27. Qc4 {[%emt 0:00:25]} Qxc4 {[%emt 0:05:19]} 28. bxc4 {[%emt 0:01:05]} Ne5 {[%emt 0:00:30]} 29. Rxd6 {[%emt 0:00:46]} Nxd6 {[%emt 0:00:04]} 30. Rxd6 {[%emt 0:00:05]} Rb2+ {[%emt 0:00:02]} 31. Kf1 {[%emt 0:01:33]} g5 {[%emt 0:07:02]} 32. f4 {[%emt 0:02:33]} Nxc4 {[%emt 0:01:08]} 33. Rd8+ {[%emt 0:00:40]} Kg7 {[%emt 0:00:02]} 34. fxg5 {[%emt 0:00:13]} Rxh2 {[%emt 0:05:29]} 35. Rc8 {[%emt 0:05:46]} Ne3+ {[%emt 0:01:21]} 36. Ke1 {[%emt 0:00:08]} Rc2 {[%emt 0:02:04]} 37. Rc5 {[%emt 0:02:24]} Kg6 {[%emt 0:01:09]} 38. a4 {[%emt 0:00:35]} Kh5 {[%emt 0:00:49]} 39. e5 {[%emt 0:01:30]} Kg4 {[%emt 0:09:10]} 40. Ne4 Kf3 {[%emt 0:00:23]} 41. Nd2+ {[%emt 0:31:41]} Kxg3 {[%emt 0:31:06]} 42. Rb5 {[%emt 0:00:43]} Nd5 {[%emt 0:19:01]} 43. Rxa5 {[%emt 0:01:07]} Nc3 {[%emt 0:01:10]} 44. Nb3 {[%emt 0:01:12]} Re2+ {[%emt 0:00:00]} 45. Kf1 {[%emt 0:00:00]} Rb2 {[%emt 0:00:00]} 46. Rb5 0-1

[Event "WYCC U16 Open 2019"]
[Site "Mumbai"]
[Date "2019.10.06"]
[Round "6.16"]
[White "Atri Chattopadhyay"]
[Black "Wachinger, Nikolas"]
[Result "0-1"]
[ECO "B22"]
[WhiteElo "1920"]
[BlackElo "2297"]
[Annotator "ChessBase"]
[PlyCount "76"]
[EventDate "2019.10.02"]
[EventType "swiss"]
[EventCountry "IND"]
[SourceTitle "playchess.com"]
[Source "ChessBase"]
[SourceQuality "1"]
[TimeControl "40/5400+30:1800+30"]

1. e4 c5 2. c3 d5 3. exd5 Qxd5 4. d4 g6 5. Be3 cxd4 6. cxd4 Bg7 7. Nc3 Qa5 8. Nf3 Nh6 9. Bc4 O-O 10. O-O Nf5 11. Qe2 Nc6 12. d5 Ne5 13. Nxe5 Bxe5 14. h3 Bd7 15. Bb6 Qxb6 16. Qxe5 Qd4 17. Qxd4 Nxd4 18. Rfd1 Nf5 19. Ne4 Rfc8 20. Bb3 a5 21. a4 Ra6 22. Rac1 Rxc1 23. Rxc1 Rb6 24. Rc7 Rxb3 25. Rxd7 Rb4 26. g4 Nd4 27. Rxe7 Kf8 28. d6 Nc6 29. Nf6 Nxe7 30. dxe7+ Kxe7 31. Nd5+ Kd6 32. Nxb4 axb4 33. Kf1 Kc5 34. Ke2 Kc4 35. Kd2 Kb3 36. Kc1 g5 37. a5 Ka2 38. f3 b3 0-1